fUSD/lending_fUSD_20240114
["ID","MTS","AMOUNT","RATE_DAILY","PERIOD"]
[311610731,1705265440205,-492.04,0.00026268,2]
[311610733,1705265440214,-813.9,0.00026289,2]
[311610735,1705265440223,-167.94,0.00026302,2]
[311610737,1705265440232,-843.0,0.00026466,2]
[311610739,1705265440241,-10593.03,0.00026575,2]
[311610741,1705265440251,-157.81,0.0002658,2]
[311610743,1705265440260,-313.84,0.00026601,2]
[311610745,1705265440269,-176.31,0.00026623,2]
[311610747,1705265440278,-500.0,0.00026636,2]
[311610749,1705265440287,-5000.0,0.000269,2]
[311610751,1705265440296,-400.0,0.00027,3]
[311610753,1705265440305,-384.85936858,0.00027,2]
[311610755,1705265440314,-384.85936858,0.00027,2]
[311610757,1705265440323,-384.85936858,0.00027,2]
[311610759,1705265440332,-384.85936858,0.00027,2]
[311610760,1705265440342,-384.85936858,0.00027,2]
[311610762,1705265440351,-384.85936858,0.00027,2]
[311610764,1705265440361,-384.85936858,0.00027,2]
[311610766,1705265440370,-384.85936858,0.00027,2]
[311610768,1705265440379,-384.85936858,0.00027,2]
[311610770,1705265440388,-384.85936858,0.00027,2]
[311610772,1705265440397,-384.85936858,0.00027,2]
[311610774,1705265440406,-384.85936858,0.00027,2]
[311610776,1705265440415,-384.85936858,0.00027,2]
[311610778,1705265440424,-384.85936858,0.00027,2]
[311610780,1705265440433,-384.85936858,0.00027,2]
[311610782,1705265440442,-384.85936858,0.00027,2]
[311610784,1705265440451,-384.85936858,0.00027,2]
[311610786,1705265440460,-384.85936858,0.00027,2]
[311610788,1705265440469,-384.85936858,0.00027,2]
[311610790,1705265440478,-384.85936858,0.00027,2]
[311610792,1705265440487,-384.85936858,0.00027,2]
[311610794,1705265440496,-384.85936858,0.00027,2]
[311610796,1705265440505,-384.85936858,0.00027,2]
[311610798,1705265440514,-384.85936858,0.00027,2]
[311610800,1705265440523,-384.85936858,0.00027,2]
[311610802,1705265440532,-384.85936858,0.00027,2]
[311610804,1705265440541,-384.85936858,0.00027,2]
[311610806,1705265440549,-384.85936858,0.00027,2]
[311610808,1705265440558,-384.85936858,0.00027,2]
[311610810,1705265440568,-384.85936858,0.00027,2]
[311610812,1705265440576,-384.85936858,0.00027,2]
[311610814,1705265440587,-384.85936858,0.00027,2]
[311610816,1705265440595,-384.85936858,0.00027,2]
[311610818,1705265440604,-384.85936858,0.00027,2]
[311610820,1705265440614,-384.85936858,0.00027,2]
[311610822,1705265440622,-384.85936858,0.00027,2]
[311610824,1705265440632,-384.85936858,0.00027,2]
[311610826,1705265440641,-384.85936858,0.00027,2]
[311610828,1705265440649,-384.85936858,0.00027,2]
[311610830,1705265440658,-384.85936858,0.00027,2]
[311610832,1705265440667,-384.85936858,0.00027,2]
[311610834,1705265440676,-384.85936858,0.00027,2]
[311610836,1705265440685,-384.85936858,0.00027,2]
[311610838,1705265440694,-384.85936858,0.00027,2]
[311610839,1705265440703,-384.85936858,0.00027,2]
[311610840,1705265440714,-384.85936858,0.00027,2]
[311610841,1705265440723,-384.85936858,0.00027,2]
[311610842,1705265440732,-384.85936858,0.00027,2]
[311610843,1705265440742,-384.85936858,0.00027,2]
[311610844,1705265440751,-384.85936858,0.00027,2]
[311610845,1705265440760,-200.0,0.00027061,2]
[311610846,1705265440769,-500.0,0.00027064,2]
[311610847,1705265440779,-343.0,0.000272,2]
[311610848,1705265440788,-1000.0,0.000272,2]
[311610850,1705265440798,-813.9,0.00027268,2]
[311610852,1705265440807,-795.34767117,0.000273,2]
[311610854,1705265440816,-795.34767108,0.000273,2]
[311610856,1705265440825,-795.34767108,0.000273,2]
[311610858,1705265440834,-795.34767108,0.000273,2]
[311610860,1705265440843,-795.34767108,0.000273,2]
[311610862,1705265440852,-155.0,0.00027397,2]
[311610864,1705265440861,-250.0,0.00027397,2]
[311610866,1705265440870,-5690.6930067,0.000274,2]
[311610868,1705265440879,-250.0,0.000274,2]
[311610870,1705265440887,-335.56,0.000274,2]
[311610872,1705265440896,-335.56,0.000274,2]
[311610874,1705265440905,-335.56,0.000274,2]
[311610876,1705265440914,-313.84,0.00027504,2]
[311610878,1705265440923,-929.47,0.00027527,2]
[311610880,1705265440932,-205.0,0.00027781,11]
[311610882,1705265440941,-2000.0,0.00027798,3]
[311610884,1705265440950,-335.56,0.00027888,2]
[311610886,1705265440958,-1852.0,0.00027898,2]
[311610888,1705265440967,-945.0,0.00027898,2]
[311610890,1705265440976,-835.0,0.00027898,2]
[311610892,1705265440986,-530.22,0.00027898,2]
[311610893,1705265440995,-1234.0,0.00027898,2]
[311610895,1705265441004,-1252.0,0.00027898,2]
[311610897,1705265441013,-616.117,0.00027898,2]
[311610900,1705265441023,-603.218,0.00027898,2]
[311610901,1705265441032,-870.0,0.00027898,2]
[311610903,1705265441041,-428.448,0.00027898,2]
[311610905,1705265441050,-183.317,0.00027898,2]
[311610908,1705265441061,-318.0,0.00027898,2]
[311610909,1705265441070,-2903.0,0.00027898,2]
[311610911,1705265441080,-19688.0,0.00027898,2]
[311610913,1705265441089,-2271.0,0.00027898,2]
[311610916,1705265441098,-4170.0,0.00027898,2]
[311610918,1705265441108,-215.131,0.00027898,2]
[311610919,1705265441117,-242.229,0.00027898,2]
[311610922,1705265441126,-686.87814676,0.00028,2]
[311610924,1705265441135,-813.9,0.00028246,2]
[311610925,1705265441144,-167.94,0.00028307,2]
[311610927,1705265441153,-500.0,0.00028334,2]
[311610930,1705265441162,-313.84,0.00028407,2]
[311610932,1705265441171,-169.66136031,0.00028452,2]
[311610933,1705265441180,-492.04,0.00028531,2]
[311610935,1705265441189,-155.0,0.00028767,2]
[311610937,1705265441198,-7040.8786394,0.000288,2]
[311610939,1705265441206,-4942.21486666,0.00029,6]
[311610943,1705265441234,-980.38701816,0.00029,6]
[311610946,1705265441245,-473.62362058,0.00029,6]
[311610948,1705265441257,-1603.7644946,0.00029,6]
[311610950,1705265441266,-450.0,0.00029,3]
[311610952,1705265441275,-150.0,0.00029,2]
[311610954,1705265441285,-200.0,0.00029183,2]
[311610956,1705265441294,-813.9,0.00029225,2]
[311610958,1705265441303,-313.84,0.00029309,2]
[311610960,1705265441312,-187.78095067,0.000295,3]
[311610962,1705265441321,-282.42,0.00029589,2]
[311610964,1705265441331,-175.36700291,0.000298,2]
[311610966,1705265441340,-150.0,0.00029863,2]
[311610968,1705265441349,-370.483236,0.00029878,2]
[311610970,1705265441360,-25662.334001,0.00029898,5]
[311610972,1705265441369,-55555.0,0.000299,2]
[311610974,1705265441378,-15579.32167363,0.000299,2]
[311610976,1705265441387,-205.0,0.00029929,14]
[311610978,1705265441397,-335.56,0.00029968,2]
[311610980,1705265441406,-335.56,0.00029968,2]
[311610982,1705265441414,-335.56,0.00029968,2]
[311610984,1705265441423,-335.56,0.00029968,2]
[311610986,1705265441433,-335.56,0.00029968,2]
[311610988,1705265441442,-335.56,0.00029968,2]
[311610990,1705265441451,-3669324.32466786,0.00029977,2]
[311610992,1705265441460,-155.0,0.00029978,2]
[311610994,1705265441470,-155.0,0.00029978,2]
[311610996,1705265441479,-155.0,0.00029978,2]
[311610998,1705265441489,-155.0,0.00029978,2]
[311611000,1705265441498,-735.35863883,0.0002998,3]
[311611002,1705265441507,-312.30576214,0.0002998,3]
[311611004,1705265441517,-216.21985495,0.0002998,3]
[311611006,1705265441526,-2140.14879795,0.0002998,7]
[311611008,1705265441535,-904.74096856,0.0003,4]
[311611010,1705265441544,-308.41532778,0.0003,7]
[311611012,1705265441553,-678.07747155,0.0003,4]
[311611014,1705265441563,-4740.52715646,0.0003,4]
[311611016,1705265441572,-2500.0,0.0003,2]
[311611018,1705265441581,-2550.6211898,0.0003,4]
[311611020,1705265441592,-473.588883,0.0003,2]
[311611022,1705265441601,-582.05205839,0.0003,2]
[311611024,1705265441610,-9629.9439869,0.0003,2]
[311611026,1705265441619,-73561.8215736,0.0003,4]
[311611028,1705265441628,-157.55,0.0003,2]
[311611030,1705265441637,-264.17,0.0003,2]
[311611032,1705265441646,-264.17,0.0003,2]
[311611034,1705265441655,-264.17,0.0003,2]
[311611036,1705265441664,-264.17,0.0003,2]
[311611038,1705265441672,-264.17,0.0003,2]
[311611040,1705265441681,-264.17,0.0003,2]
[311611042,1705265441690,-264.17,0.0003,2]
[311611044,1705265441699,-264.17,0.0003,2]
[311611046,1705265441708,-264.17,0.0003,2]
[311611048,1705265441721,-264.17,0.0003,2]
[311611050,1705265441730,-264.17,0.0003,2]
[311611052,1705265441739,-264.17,0.0003,2]
[311611054,1705265441748,-1000.0,0.0003,2]
[311611056,1705265441756,-500.0,0.00030032,2]
[311611058,1705265441766,-500.0,0.00030082,2]
[311611060,1705265441775,-500.0,0.00030082,2]
[311611062,1705265441784,-500.0,0.00030082,2]
[311611064,1705265441794,-500.0,0.00030082,2]
[311611066,1705265441803,-500.0,0.00030082,2]
[311611068,1705265441812,-500.0,0.00030082,2]
[311611070,1705265441821,-500.0,0.00030082,2]
[311611072,1705265441830,-500.0,0.00030082,2]
[311611074,1705265441840,-500.0,0.00030082,2]
[311611076,1705265441851,-500.0,0.00030082,2]
[311611078,1705265441861,-500.0,0.00030082,2]
[311611080,1705265441870,-500.0,0.00030082,2]
[311611082,1705265441879,-500.0,0.00030082,2]
[311611084,1705265441888,-500.0,0.00030082,2]
[311611086,1705265441897,-500.0,0.00030082,2]
[311611088,1705265441906,-500.0,0.00030082,2]
[311611090,1705265441915,-500.0,0.00030082,2]
[311611092,1705265441923,-500.0,0.00030082,2]
[311611094,1705265441933,-500.0,0.00030082,2]
[311611096,1705265441942,-500.0,0.00030082,2]
[311611098,1705265441951,-500.0,0.00030082,2]
[311611100,1705265441960,-500.0,0.00030082,2]
[311611102,1705265441969,-500.0,0.00030082,2]
[311611104,1705265441978,-500.0,0.00030082,2]
[311611106,1705265441987,-500.0,0.00030082,2]
[311611108,1705265441995,-500.0,0.00030082,2]
[311611110,1705265442004,-500.0,0.00030082,2]
[311611112,1705265442013,-500.0,0.00030082,2]
[311611114,1705265442022,-500.0,0.00030082,2]
[311611116,1705265442031,-500.0,0.00030082,2]
[311611118,1705265442041,-500.0,0.00030082,2]
[311611120,1705265442050,-500.0,0.00030082,2]
[311611122,1705265442059,-500.0,0.00030082,2]
[311611124,1705265442068,-500.0,0.00030082,2]
[311611126,1705265442078,-500.0,0.00030082,2]
[311611128,1705265442087,-500.0,0.00030082,2]
[311611130,1705265442096,-500.0,0.00030082,2]
[311611132,1705265442104,-500.0,0.00030082,2]
[311611134,1705265442114,-500.0,0.00030082,2]
[311611136,1705265442123,-500.0,0.00030082,2]
[311611138,1705265442132,-15579.32167354,0.00030082,2]
[311611140,1705265442140,-362.82724763,0.000301,4]
[311611142,1705265442150,-350.0,0.00030126,2]
[311611144,1705265442159,-500.0,0.00030126,2]
[311611146,1705265442168,-500.0,0.00030126,2]
[311611148,1705265442177,-500.0,0.00030126,2]
[311611150,1705265442186,-500.0,0.00030126,2]
[311611152,1705265442195,-500.0,0.00030126,2]
[311611154,1705265442203,-500.0,0.00030126,2]
[311611156,1705265442214,-500.0,0.00030126,2]
[311611158,1705265442223,-500.0,0.00030126,2]
[311611160,1705265442232,-500.0,0.00030126,2]
[311611162,1705265442241,-500.0,0.00030126,2]
[311611164,1705265442251,-1612.07,0.00030126,10]
[311611166,1705265442260,-1993.60653099,0.00030133,2]
[311611169,1705265442269,-300.0,0.00030135,2]
[311611171,1705265442278,-300.0,0.00030135,2]
[311611173,1705265442288,-151.0,0.00030136,7]
[311611175,1705265442297,-151.0,0.00030136,7]
[311611177,1705265442308,-715.88,0.00030136,2]
[311611179,1705265442317,-500.0,0.00030136,2]
[311611181,1705265442326,-500.0,0.00030136,2]
[311611183,1705265442334,-500.60511285,0.00030136,2]
[311611185,1705265442344,-500.0,0.00030136,2]
[311611187,1705265442353,-500.0,0.00030136,2]
[311611189,1705265442362,-500.0,0.00030136,2]
[311611191,1705265442371,-501.18149414,0.00030136,2]
[311611193,1705265442379,-208.3980143,0.00030136,2]
[311611195,1705265442388,-500.0,0.00030136,2]
[311611197,1705265442397,-286.07790507,0.00030136,2]
[311611199,1705265442406,-500.0,0.00030136,2]
[311611201,1705265442416,-599.31253262,0.00030136,2]
[311611203,1705265442425,-500.0,0.00030136,2]
[311611205,1705265442433,-500.0,0.00030136,2]
[311611207,1705265442443,-501.46227027,0.00030136,2]
[311611209,1705265442451,-500.0,0.00030136,2]
[311611211,1705265442460,-500.0,0.00030136,2]
[311611213,1705265442470,-253.99853918,0.00030136,2]
[311611215,1705265442479,-500.0,0.00030136,2]
[311611217,1705265442488,-170.20616057,0.00030136,2]
[311611219,1705265442497,-500.0,0.00030136,2]
[311611221,1705265442506,-500.81744567,0.00030136,2]
[311611222,1705265442515,-500.0,0.00030136,2]
[311611225,1705265442524,-500.0,0.00030136,2]
[311611227,1705265442533,-253.5082876,0.00030136,2]
[311611228,1705265442543,-500.0,0.00030136,2]
[311611231,1705265442552,-500.0,0.00030136,2]
[311611232,1705265442561,-372.81758204,0.00030136,2]
[311611234,1705265442570,-500.0,0.00030136,2]
[311611236,1705265442579,-500.0,0.00030136,2]
[311611238,1705265442588,-500.0,0.00030136,2]
[311611240,1705265442597,-500.0,0.00030136,2]
[311611241,1705265442606,-500.0,0.00030136,2]
[311611242,1705265442615,-500.0,0.00030136,2]
[311611243,1705265442624,-500.0,0.00030136,2]
[311611244,1705265442633,-590.08677424,0.00030136,2]
[311611245,1705265442642,-500.0,0.00030136,2]
[311611246,1705265442651,-500.0,0.00030136,2]
[311611247,1705265442661,-500.0,0.00030136,2]
[311611249,1705265442670,-500.0,0.00030136,2]
[311611251,1705265442679,-500.0,0.00030136,2]
[311611252,1705265442688,-500.0,0.00030136,2]
[311611254,1705265442699,-500.0,0.00030136,2]
[311611257,1705265442710,-500.0,0.00030136,2]
[311611258,1705265442719,-500.0,0.00030136,2]
[311611261,1705265442729,-500.0,0.00030136,2]
[311611264,1705265442743,-500.0,0.00030136,2]
[311611268,1705265442754,-500.0,0.00030136,2]
[311611271,1705265442763,-500.0,0.00030136,2]
[311611274,1705265442773,-500.0,0.00030136,2]
[311611275,1705265442783,-500.0,0.00030136,2]
[311611277,1705265442793,-500.0,0.00030136,2]
[311611280,1705265442802,-500.0,0.00030136,2]
[311611282,1705265442815,-500.0,0.00030136,2]
[311611284,1705265442825,-500.0,0.00030136,2]
[311611286,1705265442834,-500.0,0.00030136,2]
[311611289,1705265442844,-500.0,0.00030136,2]
[311611292,1705265442853,-500.0,0.00030136,2]
[311611295,1705265442862,-500.0,0.00030136,2]
[311611298,1705265442872,-502.32994152,0.00030136,2]
[311611301,1705265442881,-500.0,0.00030136,2]
[311611305,1705265442892,-500.0,0.00030136,2]
[311611308,1705265442901,-500.0,0.00030136,2]
[311611311,1705265442912,-500.0,0.00030136,2]
[311611314,1705265442921,-500.0,0.00030136,2]
[311611317,1705265442930,-500.0,0.00030136,2]
[311611319,1705265442939,-500.0,0.00030136,2]
[311611321,1705265442948,-500.0,0.00030136,2]
[311611323,1705265442957,-500.0,0.00030136,2]
[311611325,1705265442966,-500.0,0.00030136,2]
[311611327,1705265442975,-500.0,0.00030136,2]
[311611329,1705265442984,-309.71129644,0.00030136,2]
[311611331,1705265442994,-500.0,0.00030136,2]
[311611333,1705265443003,-500.0,0.00030136,2]
[311611335,1705265443012,-500.0,0.00030136,2]
[311611337,1705265443021,-500.0,0.00030136,2]
[311611339,1705265443029,-500.0,0.00030136,2]
[311611341,1705265443038,-528.74,0.00030136,2]
[311611343,1705265443047,-500.0,0.00030136,2]
[311611344,1705265443057,-502.48,0.00030136,2]
[311611347,1705265443066,-500.0,0.00030136,2]
[311611348,1705265443076,-217.00917087,0.00030136,2]
[311611351,1705265443085,-500.0,0.00030136,2]
[311611352,1705265443097,-500.0,0.00030136,2]
[311611355,1705265443106,-500.0,0.00030136,2]
[311611357,1705265443115,-500.0,0.00030136,2]
[311611358,1705265443125,-500.0,0.00030136,2]
[311611360,1705265443134,-506.72083959,0.00030136,2]
[311611363,1705265443143,-505.16228599,0.00030136,2]
[311611365,1705265443153,-500.0,0.00030136,2]
[311611367,1705265443162,-500.0,0.00030136,2]
[311611368,1705265443171,-1000.0,0.00030136,2]
[311611371,1705265443181,-500.0,0.00030136,2]
[311611373,1705265443190,-500.0,0.00030136,2]
[311611375,1705265443199,-770.53,0.00030136,2]
[311611377,1705265443208,-500.0,0.00030136,2]
[311611379,1705265443217,-500.0,0.00030136,2]
[311611381,1705265443226,-500.0,0.00030136,2]
[311611383,1705265443236,-536.98,0.00030136,2]
[311611385,1705265443245,-500.0,0.00030136,2]
[311611387,1705265443254,-500.0,0.00030136,2]
[311611389,1705265443263,-500.0,0.00030136,2]
[311611391,1705265443272,-926.02,0.00030136,2]
[311611393,1705265443285,-500.0,0.00030136,2]
[311611395,1705265443294,-500.0,0.00030136,2]
[311611397,1705265443303,-500.0,0.00030136,2]
[311611399,1705265443313,-500.0,0.00030136,2]
[311611401,1705265443326,-500.0,0.00030136,2]
[311611403,1705265443336,-500.0,0.00030136,2]
[311611405,1705265443348,-1147.85,0.00030136,2]
[311611407,1705265443358,-500.0,0.00030136,2]
[311611409,1705265443367,-500.0,0.00030136,2]
[311611411,1705265443376,-500.0,0.00030136,2]
[311611414,1705265443386,-500.0,0.00030136,2]
[311611416,1705265443395,-500.0,0.00030136,2]
[311611418,1705265443404,-527.06496648,0.00030136,2]
[311611420,1705265443414,-541.41,0.00030136,2]
[311611422,1705265443423,-500.0,0.00030136,2]
[311611424,1705265443432,-500.0,0.00030136,2]
[311611426,1705265443441,-500.0,0.00030136,2]
[311611428,1705265443451,-500.0,0.00030136,2]
[311611430,1705265443460,-500.0,0.00030136,2]
[311611432,1705265443470,-500.0,0.00030136,2]
[311611434,1705265443480,-500.0,0.00030136,2]
[311611436,1705265443489,-500.0,0.00030136,2]
[311611438,1705265443498,-500.0,0.00030136,2]
[311611440,1705265443507,-500.0,0.00030136,2]
[311611442,1705265443516,-500.0,0.00030136,2]
[311611444,1705265443525,-500.0,0.00030136,2]
[311611446,1705265443535,-500.0,0.00030136,2]
[311611448,1705265443545,-500.0,0.00030136,2]
[311611450,1705265443554,-500.0,0.00030136,2]
[311611452,1705265443563,-709.9,0.00030136,2]
[311611454,1705265443572,-500.0,0.00030136,2]
[311611456,1705265443581,-500.0,0.00030136,2]
[311611458,1705265443592,-500.0,0.00030136,2]
[311611460,1705265443601,-500.0,0.00030136,2]
[311611462,1705265443610,-500.0,0.00030136,2]
[311611464,1705265443620,-500.0,0.00030136,2]
[311611466,1705265443629,-500.0,0.00030136,2]
[311611468,1705265443639,-509.86611813,0.00030136,2]
[311611470,1705265443648,-656.39,0.00030136,2]
[311611473,1705265443661,-500.0,0.00030136,2]
[311611475,1705265443671,-500.0,0.00030136,2]
[311611477,1705265443681,-500.0,0.00030136,2]
[311611479,1705265443690,-500.0,0.00030136,2]
[311611481,1705265443700,-500.0,0.00030136,2]
[311611483,1705265443710,-500.0,0.00030136,2]
[311611485,1705265443719,-563.52762795,0.00030136,2]
[311611487,1705265443730,-500.0,0.00030136,2]
[311611489,1705265443739,-500.0,0.00030136,2]
[311611511,1705265443922,-500.0,0.00030136,2]
[311611513,1705265443940,-500.0,0.00030136,2]
[311611515,1705265443950,-500.0,0.00030136,2]
[311611517,1705265443959,-585.77,0.00030136,2]
[311611519,1705265443968,-500.0,0.00030136,2]
[311611521,1705265443977,-505.21482687,0.00030136,2]
[311611523,1705265443986,-646.67,0.00030136,2]
[311611525,1705265443996,-500.0,0.00030136,2]
[311611527,1705265444005,-500.0,0.00030136,2]
[311611529,1705265444014,-506.26461892,0.00030136,2]
[311611531,1705265444024,-500.0,0.00030136,2]
[311611533,1705265444033,-574.87064191,0.00030136,2]
[311611535,1705265444043,-518.21403904,0.00030136,2]
[311611537,1705265444052,-313.93848752,0.00030136,2]
[311611539,1705265444061,-518.76,0.00030136,2]
[311611541,1705265444070,-500.0,0.00030136,2]
[311611543,1705265444079,-500.0,0.00030136,2]
[311611545,1705265444089,-500.0,0.00030136,2]
[311611547,1705265444099,-500.0,0.00030136,2]
[311611549,1705265444111,-500.0,0.00030136,2]
[311611552,1705265444120,-500.0,0.00030136,2]
[311611554,1705265444129,-511.25833359,0.00030136,2]
[311611556,1705265444138,-500.0,0.00030136,2]
[311611558,1705265444147,-500.0,0.00030136,2]
[311611560,1705265444156,-500.0,0.00030136,2]
[311611562,1705265444166,-500.0,0.00030136,2]
[311611564,1705265444175,-500.0,0.00030136,2]
[311611566,1705265444185,-500.0,0.00030136,2]
[311611568,1705265444194,-500.0,0.00030136,2]
[311611570,1705265444204,-500.0,0.00030136,2]
[311611572,1705265444213,-183.90905522,0.00030136,2]
[311611574,1705265444222,-500.0,0.00030136,2]
[311611576,1705265444232,-500.0,0.00030136,2]
[311611578,1705265444241,-500.0,0.00030136,2]
[311611580,1705265444250,-673.27,0.00030136,2]
[311611582,1705265444260,-653.68,0.00030136,2]
[311611585,1705265444277,-640.51,0.00030136,2]
[311611588,1705265444293,-500.0,0.00030136,2]
[311611590,1705265444303,-500.0,0.00030136,2]
[311611592,1705265444313,-595.86,0.00030136,2]
[311611594,1705265444324,-500.0,0.00030136,2]
[311611596,1705265444334,-500.0,0.00030136,2]
[311611599,1705265444347,-500.0,0.00030136,2]
[311611600,1705265444358,-565.95,0.00030136,2]
[311611601,1705265444368,-500.0,0.00030136,2]
[311611602,1705265444378,-611.99983717,0.00030136,2]
[311611603,1705265444389,-500.0,0.00030136,2]
[311611604,1705265444399,-500.0,0.00030136,2]
[311611605,1705265444409,-500.0,0.00030136,2]
[311611606,1705265444419,-500.0,0.00030136,2]
[311611608,1705265444430,-645.55,0.00030136,2]
[311611610,1705265444440,-588.78,0.00030136,2]
[311611612,1705265444450,-500.0,0.00030136,2]
[311611614,1705265444459,-500.0,0.00030136,2]
[311611616,1705265444469,-683.34,0.00030136,2]
[311611618,1705265444479,-500.0,0.00030136,2]
[311611620,1705265444489,-551.22,0.00030136,2]
[311611622,1705265444499,-500.0,0.00030136,2]
[311611624,1705265444509,-500.0,0.00030136,2]
[311611627,1705265444519,-500.0,0.00030136,2]
[311611629,1705265444529,-629.12438524,0.00030136,2]
[311611631,1705265444539,-500.0,0.00030136,2]
[311611633,1705265444550,-500.0,0.00030136,2]
[311611635,1705265444560,-500.0,0.00030136,2]
[311611637,1705265444570,-594.67,0.00030136,2]
[311611639,1705265444580,-963.4,0.00030136,2]
[311611641,1705265444592,-515.96770576,0.00030136,2]
[311611643,1705265444602,-601.15,0.00030136,2]
[311611645,1705265444612,-500.0,0.00030136,2]
[311611647,1705265444623,-501.46994044,0.00030136,2]
[311611650,1705265444633,-500.0,0.00030136,2]
[311611652,1705265444643,-665.95,0.00030136,2]
[311611654,1705265444653,-500.0,0.00030136,2]
[311611656,1705265444663,-500.0,0.00030136,2]
[311611658,1705265444673,-515.29535078,0.00030136,2]
[311611660,1705265444682,-500.0,0.00030136,2]
[311611662,1705265444692,-500.0,0.00030136,2]
[311611664,1705265444701,-500.0,0.00030136,2]
[311611666,1705265444711,-500.0,0.00030136,2]
[311611668,1705265444722,-502.07511206,0.00030136,2]
[311611670,1705265444732,-628.40446175,0.00030136,2]
[311611672,1705265444741,-500.0,0.00030136,2]
[311611674,1705265444753,-500.0,0.00030136,2]
[311611676,1705265444763,-503.19546141,0.00030136,2]
[311611678,1705265444772,-500.0,0.00030136,2]
[311611681,1705265444783,-500.0,0.00030136,2]
[311611683,1705265444793,-500.0,0.00030136,2]
[311611685,1705265444803,-578.14169789,0.00030136,2]
[311611687,1705265444813,-500.0,0.00030136,2]
[311611689,1705265444823,-626.87,0.00030136,2]
[311611691,1705265444832,-562.08,0.00030136,2]
[311611693,1705265444842,-500.0,0.00030136,2]
[311611695,1705265444852,-500.0,0.00030136,2]
[311611697,1705265444861,-500.0,0.00030136,2]
[311611699,1705265444871,-500.0,0.00030136,2]
[311611701,1705265444880,-500.0,0.00030136,2]
[311611703,1705265444889,-500.0,0.00030136,2]
[311611705,1705265444899,-518.61019887,0.00030136,2]
[311611707,1705265444908,-500.0,0.00030136,2]
[311611709,1705265444917,-500.0,0.00030136,2]
[311611712,1705265444926,-500.0,0.00030136,2]
[311611714,1705265444935,-727.57,0.00030136,2]
[311611716,1705265444945,-500.0,0.00030136,2]
[311611718,1705265444954,-560.21,0.00030136,2]
[311611720,1705265444963,-500.0,0.00030136,2]
[311611722,1705265444973,-500.0,0.00030136,2]
[311611724,1705265444982,-500.0,0.00030136,2]
[311611726,1705265444991,-500.0,0.00030136,2]
[311611728,1705265445001,-500.0,0.00030136,2]
[311611730,1705265445010,-500.0,0.00030136,2]
[311611732,1705265445019,-500.0,0.00030136,2]
[311611734,1705265445029,-500.0,0.00030136,2]
[311611736,1705265445038,-500.0,0.00030136,2]
[311611738,1705265445048,-500.0,0.00030136,2]
[311611740,1705265445057,-500.0,0.00030136,2]
[311611742,1705265445066,-500.0,0.00030136,2]
[311611744,1705265445076,-500.0,0.00030136,2]
[311611746,1705265445085,-500.0,0.00030136,2]
[311611748,1705265445096,-500.0,0.00030136,2]
[311611751,1705265445106,-500.0,0.00030136,2]
[311611753,1705265445120,-500.0,0.00030136,2]